{"text_format":"3","workbook":"xlsx","n_sheets":1,"sheets":["Бюджет сім’ї на місяць"],"read":"whole","date_system":"1900"}

{"sheet":"Бюджет сім’ї на місяць","index":0,"n_rows":67,"n_cols":10,"rows_kept":67}
[null,"Бюджет сім’ї на місяць"]
[null,"Таблиця підсумків","Усього\nПрогнозовані витрати","Усього\nФактичні витрати","Усього\nРізниця",null,"Джерело прогнозованого щомісячного доходу","Кількість"]
[null,null,{"$f":"Житло[[#Totals],[Прогнозовані\nвитрати]]+Транспорт[[#Totals],[Прогнозовані\nвитрати]]+Страхування[[#Totals],[Прогнозовані\nвитрати]]+Харчування[[#Totals],[Прогнозовані\nвитрати]]+Діти[[#Totals],[Прогнозовані\nвитрати]]+Юридичні_послуги[[#Totals],[Прогнозовані\nвитрати]]+Заощадження[[#Totals],[Прогнозовані\nвитрати]]+Кредити[[#Totals],[Прогнозовані\nвитрати]]+Розваги[[#Totals],[Прогнозовані\nвитрати]]+Податки[[#Totals],[Прогнозовані \nвитрати]]+ДоглядЗаСобою[[#Totals],[Прогнозовані\nвитрати]]+Домашні_тварини[[#Totals],[Прогнозовані\nвитрати]]+Подарунки[[#Totals],[Прогнозовані\nвитрати]]","v":{"v":1203,"d":"1,203₴"}},{"$f":"Житло[[#Totals],[Фактичні\nвитрати]]+Транспорт[[#Totals],[Фактичні\nвитрати]]+Страхування[[#Totals],[Фактичні\nвитрати]]+Харчування[[#Totals],[Фактичні\nвитрати]]+Діти[[#Totals],[Фактичні\nвитрати]]+Юридичні_послуги[[#Totals],[Фактичні\nвитрати]]+Заощадження[[#Totals],[Фактичні\nвитрати]]+Кредити[[#Totals],[Фактичні\nвитрати]]+Розваги[[#Totals],[Фактичні\nвитрати]]+Податки[[#Totals],[Фактичні \nвитрати]]+ДоглядЗаСобою[[#Totals],[Фактичні\nвитрати]]+Домашні_тварини[[#Totals],[Фактичні\nвитрати]]+Подарунки[[#Totals],[Фактичні\nвитрати]]","v":{"v":1317,"d":"1,317₴"}},{"$f":"Житло[[#Totals],[Різниця]]+Транспорт[[#Totals],[Різниця]]+Страхування[[#Totals],[Різниця]]+Харчування[[#Totals],[Різниця]]+Діти[[#Totals],[Різниця]]+Юридичні_послуги[[#Totals],[Різниця]]+Заощадження[[#Totals],[Різниця]]+Кредити[[#Totals],[Різниця]]+Розваги[[#Totals],[Різниця]]+Податки[[#Totals],[Різниця]]+ДоглядЗаСобою[[#Totals],[Різниця]]+Домашні_тварини[[#Totals],[Різниця]]+Подарунки[[#Totals],[Різниця]]","v":{"v":-114,"d":"-114₴"}},null,"Дохід 1",{"v":4000,"d":"4,000₴"}]
[{"$nulls":6},"Дохід 2",{"v":1200,"d":"1,200₴"}]
[null,"Житло","Прогнозовані\nвитрати","Фактичні\nвитрати","Різниця",null,"Додатковий дохід",{"v":300,"d":"300₴"}]
[null,"Іпотека або оренда",{"v":1000,"d":"1,000₴"},{"v":1000,"d":"1,000₴"},{"$f":"Житло[Прогнозовані\nвитрати]-Житло[Фактичні\nвитрати]","v":{"v":0,"d":"0₴"}},null,"Загальний щомісячний дохід",{"$f":"SUM(H3:H5)","v":{"v":5500,"d":"5,500₴"}}]
[null,"Друга іпотека або оренда",{"v":0,"d":"0₴"},{"v":0,"d":"0₴"},{"$f":"Житло[Прогнозовані\nвитрати]-Житло[Фактичні\nвитрати]","v":{"v":0,"d":"0₴"}}]
[null,"Телефон",{"v":62,"d":"62₴"},{"v":100,"d":"100₴"},{"$f":"Житло[Прогнозовані\nвитрати]-Житло[Фактичні\nвитрати]","v":{"v":-38,"d":"-38₴"}},null,"Джерело фактичного щомісячного доходу","Обсяг"]
[null,"Електроенергія",{"v":44,"d":"44₴"},{"v":125,"d":"125₴"},{"$f":"Житло[Прогнозовані\nвитрати]-Житло[Фактичні\nвитрати]","v":{"v":-81,"d":"-81₴"}},null,"Дохід 1",{"v":4000,"d":"4,000₴"}]
[null,"Газ",{"v":22,"d":"22₴"},{"v":35,"d":"35₴"},{"$f":"Житло[Прогнозовані\nвитрати]-Житло[Фактичні\nвитрати]","v":{"v":-13,"d":"-13₴"}},null,"Дохід 2",{"v":1200,"d":"1,200₴"}]
[null,"Постачання води й водовідведення",{"v":8,"d":"8₴"},{"v":8,"d":"8₴"},{"$f":"Житло[Прогнозовані\nвитрати]-Житло[Фактичні\nвитрати]","v":{"v":0,"d":"0₴"}},null,"Додатковий дохід",{"v":300,"d":"300₴"}]
[null,"Кабельне ТБ",{"v":34,"d":"34₴"},{"v":39,"d":"39₴"},{"$f":"Житло[Прогнозовані\nвитрати]-Житло[Фактичні\nвитрати]","v":{"v":-5,"d":"-5₴"}},null,"Загальний щомісячний дохід",{"$f":"SUM(H9:H11)","v":{"v":5500,"d":"5,500₴"}}]
[null,"Вивезення сміття",{"v":10,"d":"10₴"},{"v":10,"d":"10₴"},{"$f":"Житло[Прогнозовані\nвитрати]-Житло[Фактичні\nвитрати]","v":{"v":0,"d":"0₴"}}]
[null,"Обслуговування або ремонт",{"v":23,"d":"23₴"},{"v":0,"d":"0₴"},{"$f":"Житло[Прогнозовані\nвитрати]-Житло[Фактичні\nвитрати]","v":{"v":23,"d":"23₴"}},null,"Баланс","Сума"]
[null,"Матеріали",{"v":0,"d":"0₴"},{"v":0,"d":"0₴"},{"$f":"Житло[Прогнозовані\nвитрати]-Житло[Фактичні\nвитрати]","v":{"v":0,"d":"0₴"}},null,"Прогнозований баланс",{"$f":"SUM(H6-'Бюджет сім’ї на місяць'!$C$3:$C$3)","v":{"v":4297,"d":"4,297₴"}}]
[null,"Інше",{"v":0,"d":"0₴"},{"v":0,"d":"0₴"},{"$f":"Житло[Прогнозовані\nвитрати]-Житло[Фактичні\nвитрати]","v":{"v":0,"d":"0₴"}},null,"Фактичний баланс",{"$f":"SUM(H12-D3)","v":{"v":4183,"d":"4,183₴"}}]
[null,"Усього",{"$f":"SUBTOTAL(109,Житло[Прогнозовані\nвитрати])","v":{"v":1203,"d":"1,203₴"}},{"$f":"SUBTOTAL(109,Житло[Фактичні\nвитрати])","v":{"v":1317,"d":"1,317₴"}},{"$f":"SUBTOTAL(109,Житло[Різниця])","v":{"v":-114,"d":"-114₴"}},null,"Різниця",{"$f":"SUM(H16-H15)","v":{"v":-114,"d":"-114₴"}}]
[]
[null,"Транспорт","Прогнозовані\nвитрати","Фактичні\nвитрати","Різниця",null,"Кредити","Прогнозовані\nвитрати","Фактичні\nвитрати","Різниця"]
[null,"Плата за авто 1",null,null,{"$f":"Транспорт[Прогнозовані\nвитрати]-Транспорт[Фактичні\nвитрати]","v":{"v":0,"d":"0₴"}},null,"Споживчі",null,null,{"$f":"Кредити[Прогнозовані\nвитрати]-Кредити[Фактичні\nвитрати]","v":{"v":0,"d":"0₴"}}]
[null,"Плата за авто 2",null,null,{"$f":"Транспорт[Прогнозовані\nвитрати]-Транспорт[Фактичні\nвитрати]","v":{"v":0,"d":"0₴"}},null,"На енергозбереження",null,null,{"$f":"Кредити[Прогнозовані\nвитрати]-Кредити[Фактичні\nвитрати]","v":{"v":0,"d":"0₴"}}]
[null,"Транспорт/таксі",null,null,{"$f":"Транспорт[Прогнозовані\nвитрати]-Транспорт[Фактичні\nвитрати]","v":{"v":0,"d":"0₴"}},null,"Кредитна картка",null,null,{"$f":"Кредити[Прогнозовані\nвитрати]-Кредити[Фактичні\nвитрати]","v":{"v":0,"d":"0₴"}}]
[null,"Страхування",null,null,{"$f":"Транспорт[Прогнозовані\nвитрати]-Транспорт[Фактичні\nвитрати]","v":{"v":0,"d":"0₴"}},null,"Кредитна картка",null,null,{"$f":"Кредити[Прогнозовані\nвитрати]-Кредити[Фактичні\nвитрати]","v":{"v":0,"d":"0₴"}}]
[null,"Ліцензування",null,null,{"$f":"Транспорт[Прогнозовані\nвитрати]-Транспорт[Фактичні\nвитрати]","v":{"v":0,"d":"0₴"}},null,"Кредитна картка",null,null,{"$f":"Кредити[Прогнозовані\nвитрати]-Кредити[Фактичні\nвитрати]","v":{"v":0,"d":"0₴"}}]
[null,"Паливо",null,null,{"$f":"Транспорт[Прогнозовані\nвитрати]-Транспорт[Фактичні\nвитрати]","v":{"v":0,"d":"0₴"}},null,"Інше",null,null,{"$f":"Кредити[Прогнозовані\nвитрати]-Кредити[Фактичні\nвитрати]","v":{"v":0,"d":"0₴"}}]
[null,"Обслуговування",null,null,{"$f":"Транспорт[Прогнозовані\nвитрати]-Транспорт[Фактичні\nвитрати]","v":{"v":0,"d":"0₴"}},null,"Усього",{"$f":"SUBTOTAL(109,Кредити[Прогнозовані\nвитрати])","v":{"v":0,"d":"0₴"}},{"$f":"SUBTOTAL(109,Кредити[Фактичні\nвитрати])","v":{"v":0,"d":"0₴"}},{"$f":"SUBTOTAL(109,Кредити[Різниця])","v":{"v":0,"d":"0₴"}}]
[null,"Інше",null,null,{"$f":"Транспорт[Прогнозовані\nвитрати]-Транспорт[Фактичні\nвитрати]","v":{"v":0,"d":"0₴"}}]
[null,"Усього",{"$f":"SUBTOTAL(109,Транспорт[Прогнозовані\nвитрати])","v":{"v":0,"d":"0₴"}},{"$f":"SUBTOTAL(109,Транспорт[Фактичні\nвитрати])","v":{"v":0,"d":"0₴"}},{"$f":"SUBTOTAL(109,Транспорт[Різниця])","v":{"v":0,"d":"0₴"}},null,"Розваги","Прогнозовані\nвитрати","Фактичні\nвитрати","Різниця"]
[{"$nulls":6},"Відео/DVD",null,null,{"$f":"Розваги[Прогнозовані\nвитрати]-Розваги[Фактичні\nвитрати]","v":{"v":0,"d":"0₴"}}]
[null,"Страхування","Прогнозовані\nвитрати","Фактичні\nвитрати","Різниця",null,"Компакт-диски",null,null,{"$f":"Розваги[Прогнозовані\nвитрати]-Розваги[Фактичні\nвитрати]","v":{"v":0,"d":"0₴"}}]
[null,"Дім",null,null,{"$f":"Страхування[Прогнозовані\nвитрати]-Страхування[Фактичні\nвитрати]","v":{"v":0,"d":"0₴"}},null,"Фільми",null,null,{"$f":"Розваги[Прогнозовані\nвитрати]-Розваги[Фактичні\nвитрати]","v":{"v":0,"d":"0₴"}}]
[null,"Здоров’я",null,null,{"$f":"Страхування[Прогнозовані\nвитрати]-Страхування[Фактичні\nвитрати]","v":{"v":0,"d":"0₴"}},null,"Концерти",null,null,{"$f":"Розваги[Прогнозовані\nвитрати]-Розваги[Фактичні\nвитрати]","v":{"v":0,"d":"0₴"}}]
[null,"Життя",null,null,{"$f":"Страхування[Прогнозовані\nвитрати]-Страхування[Фактичні\nвитрати]","v":{"v":0,"d":"0₴"}},null,"Спортивні події",null,null,{"$f":"Розваги[Прогнозовані\nвитрати]-Розваги[Фактичні\nвитрати]","v":{"v":0,"d":"0₴"}}]
[null,"Інше",null,null,{"$f":"Страхування[Прогнозовані\nвитрати]-Страхування[Фактичні\nвитрати]","v":{"v":0,"d":"0₴"}},null,"Театри",null,null,{"$f":"Розваги[Прогнозовані\nвитрати]-Розваги[Фактичні\nвитрати]","v":{"v":0,"d":"0₴"}}]
[null,"Усього",{"$f":"SUBTOTAL(109,Страхування[Прогнозовані\nвитрати])","v":{"v":0,"d":"0₴"}},{"$f":"SUBTOTAL(109,Страхування[Фактичні\nвитрати])","v":{"v":0,"d":"0₴"}},{"$f":"SUBTOTAL(109,Страхування[Різниця])","v":{"v":0,"d":"0₴"}},null,"Інше",null,null,{"$f":"Розваги[Прогнозовані\nвитрати]-Розваги[Фактичні\nвитрати]","v":{"v":0,"d":"0₴"}}]
[{"$nulls":6},"Усього",{"$f":"SUBTOTAL(109,Розваги[Прогнозовані\nвитрати])","v":{"v":0,"d":"0₴"}},{"$f":"SUBTOTAL(109,Розваги[Фактичні\nвитрати])","v":{"v":0,"d":"0₴"}},{"$f":"SUBTOTAL(109,Розваги[Різниця])","v":{"v":0,"d":"0₴"}}]
[null,"Їжа","Прогнозовані\nвитрати","Фактичні\nвитрати","Різниця"]
[null,"Продукти",null,null,{"$f":"Харчування[Прогнозовані\nвитрати]-Харчування[Фактичні\nвитрати]","v":{"v":0,"d":"0₴"}},null,"Податки","Прогнозовані \nвитрати","Фактичні \nвитрати","Різниця"]
[null,"Ресторани/кафе",null,null,{"$f":"Харчування[Прогнозовані\nвитрати]-Харчування[Фактичні\nвитрати]","v":{"v":0,"d":"0₴"}},null,"На доходи",null,null,{"$f":"Податки[Прогнозовані \nвитрати]-Податки[Фактичні \nвитрати]","v":{"v":0,"d":"0₴"}}]
[null,"Інше",null,null,{"$f":"Харчування[Прогнозовані\nвитрати]-Харчування[Фактичні\nвитрати]","v":{"v":0,"d":"0₴"}},null,"На майно",null,null,{"$f":"Податки[Прогнозовані \nвитрати]-Податки[Фактичні \nвитрати]","v":{"v":0,"d":"0₴"}}]
[null,"Усього",{"$f":"SUBTOTAL(109,Харчування[Прогнозовані\nвитрати])","v":{"v":0,"d":"0₴"}},{"$f":"SUBTOTAL(109,Харчування[Фактичні\nвитрати])","v":{"v":0,"d":"0₴"}},{"$f":"SUBTOTAL(109,Харчування[Різниця])","v":{"v":0,"d":"0₴"}},null,"Місцеві",null,null,{"$f":"Податки[Прогнозовані \nвитрати]-Податки[Фактичні \nвитрати]","v":{"v":0,"d":"0₴"}}]
[{"$nulls":6},"Інше",null,null,{"$f":"Податки[Прогнозовані \nвитрати]-Податки[Фактичні \nвитрати]","v":{"v":0,"d":"0₴"}}]
[null,"Діти","Прогнозовані\nвитрати","Фактичні\nвитрати","Різниця",null,"Усього",{"$f":"SUBTOTAL(109,Податки[Прогнозовані \nвитрати])","v":{"v":0,"d":"0₴"}},{"$f":"SUBTOTAL(109,Податки[Фактичні \nвитрати])","v":{"v":0,"d":"0₴"}},{"$f":"SUBTOTAL(109,Податки[Різниця])","v":{"v":0,"d":"0₴"}}]
[null,"Медицина",null,null,{"$f":"Діти[Прогнозовані\nвитрати]-Діти[Фактичні\nвитрати]","v":{"v":0,"d":"0₴"}}]
[null,"Одяг",null,null,{"$f":"Діти[Прогнозовані\nвитрати]-Діти[Фактичні\nвитрати]","v":{"v":0,"d":"0₴"}},null,"Догляд за собою","Прогнозовані\nвитрати","Фактичні\nвитрати","Різниця"]
[null,"Шкільні внески",null,null,{"$f":"Діти[Прогнозовані\nвитрати]-Діти[Фактичні\nвитрати]","v":{"v":0,"d":"0₴"}},null,"Медицина",null,null,{"$f":"ДоглядЗаСобою[Прогнозовані\nвитрати]-ДоглядЗаСобою[Фактичні\nвитрати]","v":{"v":0,"d":"0₴"}}]
[null,"Шкільне приладдя",null,null,{"$f":"Діти[Прогнозовані\nвитрати]-Діти[Фактичні\nвитрати]","v":{"v":0,"d":"0₴"}},null,"Волосся/нігті",null,null,{"$f":"ДоглядЗаСобою[Прогнозовані\nвитрати]-ДоглядЗаСобою[Фактичні\nвитрати]","v":{"v":0,"d":"0₴"}}]
[null,"Екскурсії тощо",null,null,{"$f":"Діти[Прогнозовані\nвитрати]-Діти[Фактичні\nвитрати]","v":{"v":0,"d":"0₴"}},null,"Одяг",null,null,{"$f":"ДоглядЗаСобою[Прогнозовані\nвитрати]-ДоглядЗаСобою[Фактичні\nвитрати]","v":{"v":0,"d":"0₴"}}]
[null,"Кишенькові гроші",null,null,{"$f":"Діти[Прогнозовані\nвитрати]-Діти[Фактичні\nвитрати]","v":{"v":0,"d":"0₴"}},null,"Хімчистка",null,null,{"$f":"ДоглядЗаСобою[Прогнозовані\nвитрати]-ДоглядЗаСобою[Фактичні\nвитрати]","v":{"v":0,"d":"0₴"}}]
[null,"Догляд",null,null,{"$f":"Діти[Прогнозовані\nвитрати]-Діти[Фактичні\nвитрати]","v":{"v":0,"d":"0₴"}},null,"Спортзал",null,null,{"$f":"ДоглядЗаСобою[Прогнозовані\nвитрати]-ДоглядЗаСобою[Фактичні\nвитрати]","v":{"v":0,"d":"0₴"}}]
[null,"Іграшки/ігри",null,null,{"$f":"Діти[Прогнозовані\nвитрати]-Діти[Фактичні\nвитрати]","v":{"v":0,"d":"0₴"}},null,"Оргвитрати",null,null,{"$f":"ДоглядЗаСобою[Прогнозовані\nвитрати]-ДоглядЗаСобою[Фактичні\nвитрати]","v":{"v":0,"d":"0₴"}}]
[null,"Інше",null,null,{"$f":"Діти[Прогнозовані\nвитрати]-Діти[Фактичні\nвитрати]","v":{"v":0,"d":"0₴"}},null,"Інше",null,null,{"$f":"ДоглядЗаСобою[Прогнозовані\nвитрати]-ДоглядЗаСобою[Фактичні\nвитрати]","v":{"v":0,"d":"0₴"}}]
[null,"Усього",{"$f":"SUBTOTAL(109,Діти[Прогнозовані\nвитрати])","v":{"v":0,"d":"0₴"}},{"$f":"SUBTOTAL(109,Діти[Фактичні\nвитрати])","v":{"v":0,"d":"0₴"}},{"$f":"SUBTOTAL(109,Діти[Різниця])","v":{"v":0,"d":"0₴"}},null,"Усього",{"$f":"SUBTOTAL(109,ДоглядЗаСобою[Прогнозовані\nвитрати])","v":{"v":0,"d":"0₴"}},{"$f":"SUBTOTAL(109,ДоглядЗаСобою[Фактичні\nвитрати])","v":{"v":0,"d":"0₴"}},{"$f":"SUBTOTAL(109,ДоглядЗаСобою[Різниця])","v":{"v":0,"d":"0₴"}}]
[]
[null,"Юристи","Прогнозовані\nвитрати","Фактичні\nвитрати","Різниця",null,"Домашні_тварини","Прогнозовані\nвитрати","Фактичні\nвитрати","Різниця"]
[null,"Адвокат",null,null,{"$f":"Юридичні_послуги[Прогнозовані\nвитрати]-Юридичні_послуги[Фактичні\nвитрати]","v":{"v":0,"d":"0₴"}},null,"Їжа",null,null,{"$f":"Домашні_тварини[Прогнозовані\nвитрати]-Домашні_тварини[Фактичні\nвитрати]","v":{"v":0,"d":"0₴"}}]
[null,"Аліменти",null,null,{"$f":"Юридичні_послуги[Прогнозовані\nвитрати]-Юридичні_послуги[Фактичні\nвитрати]","v":{"v":0,"d":"0₴"}},null,"Медицина",null,null,{"$f":"Домашні_тварини[Прогнозовані\nвитрати]-Домашні_тварини[Фактичні\nвитрати]","v":{"v":0,"d":"0₴"}}]
[null,"Платежі",null,null,{"$f":"Юридичні_послуги[Прогнозовані\nвитрати]-Юридичні_послуги[Фактичні\nвитрати]","v":{"v":0,"d":"0₴"}},null,"Грумінг",null,null,{"$f":"Домашні_тварини[Прогнозовані\nвитрати]-Домашні_тварини[Фактичні\nвитрати]","v":{"v":0,"d":"0₴"}}]
[null,"Інше",null,null,{"$f":"Юридичні_послуги[Прогнозовані\nвитрати]-Юридичні_послуги[Фактичні\nвитрати]","v":{"v":0,"d":"0₴"}},null,"Іграшки",null,null,{"$f":"Домашні_тварини[Прогнозовані\nвитрати]-Домашні_тварини[Фактичні\nвитрати]","v":{"v":0,"d":"0₴"}}]
[null,"Усього",{"$f":"SUBTOTAL(109,Юридичні_послуги[Прогнозовані\nвитрати])","v":{"v":0,"d":"0₴"}},{"$f":"SUBTOTAL(109,Юридичні_послуги[Фактичні\nвитрати])","v":{"v":0,"d":"0₴"}},{"$f":"SUBTOTAL(109,Юридичні_послуги[Різниця])","v":{"v":0,"d":"0₴"}},null,"Інше",null,null,{"$f":"Домашні_тварини[Прогнозовані\nвитрати]-Домашні_тварини[Фактичні\nвитрати]","v":{"v":0,"d":"0₴"}}]
[{"$nulls":6},"Усього",{"$f":"SUBTOTAL(109,Домашні_тварини[Прогнозовані\nвитрати])","v":{"v":0,"d":"0₴"}},{"$f":"SUBTOTAL(109,Домашні_тварини[Фактичні\nвитрати])","v":{"v":0,"d":"0₴"}},{"$f":"SUBTOTAL(109,Домашні_тварини[Різниця])","v":{"v":0,"d":"0₴"}}]
[null,"Заощадження/вклади","Прогнозовані\nвитрати","Фактичні\nвитрати","Різниця"]
[null,"Пенсійний вклад",null,null,{"$f":"Заощадження[Прогнозовані\nвитрати]-Заощадження[Фактичні\nвитрати]","v":{"v":0,"d":"0₴"}},null,"Подарунки й пожертви","Прогнозовані\nвитрати","Фактичні\nвитрати","Різниця"]
[null,"Депозити",null,null,{"$f":"Заощадження[Прогнозовані\nвитрати]-Заощадження[Фактичні\nвитрати]","v":{"v":0,"d":"0₴"}},null,"На благодійність 1",null,null,{"$f":"Подарунки[Прогнозовані\nвитрати]-Подарунки[Фактичні\nвитрати]","v":{"v":0,"d":"0₴"}}]
[null,"На навчання",null,null,{"$f":"Заощадження[Прогнозовані\nвитрати]-Заощадження[Фактичні\nвитрати]","v":{"v":0,"d":"0₴"}},null,"На благодійність 2",null,null,{"$f":"Подарунки[Прогнозовані\nвитрати]-Подарунки[Фактичні\nвитрати]","v":{"v":0,"d":"0₴"}}]
[null,"Інше",null,null,{"$f":"Заощадження[Прогнозовані\nвитрати]-Заощадження[Фактичні\nвитрати]","v":{"v":0,"d":"0₴"}},null,"На благодійність 3",null,null,{"$f":"Подарунки[Прогнозовані\nвитрати]-Подарунки[Фактичні\nвитрати]","v":{"v":0,"d":"0₴"}}]
[null,"Усього",{"$f":"SUBTOTAL(109,Заощадження[Прогнозовані\nвитрати])","v":{"v":0,"d":"0₴"}},{"$f":"SUBTOTAL(109,Заощадження[Фактичні\nвитрати])","v":{"v":0,"d":"0₴"}},{"$f":"SUBTOTAL(109,Заощадження[Різниця])","v":{"v":0,"d":"0₴"}},null,"Усього",{"$f":"SUBTOTAL(109,Подарунки[Прогнозовані\nвитрати])","v":{"v":0,"d":"0₴"}},{"$f":"SUBTOTAL(109,Подарунки[Фактичні\nвитрати])","v":{"v":0,"d":"0₴"}},{"$f":"SUBTOTAL(109,Подарунки[Різниця])","v":{"v":0,"d":"0₴"}}]